bitfinex-derivatives/quotes_ETHF0:USTF0_20260222
["timestamp","ask_amount","ask_price","bid_price","bid_amount"]
[1771767434824,0.53489507,1959.4,1958.6,0.00404545]
[1771767435026,6.63887867,1959.3,1958.6,0.00404545]
[1771767435226,0.53493389,1959.3,1958.6,0.00404545]
[1771767435621,0.53493389,1959.1,1958.6,0.00404545]
[1771767435828,0.53493389,1959.0,1958.3,0.58466488]
[1771767436326,0.53493389,1958.9,1958.3,0.58466488]
[1771767436829,0.53493389,1958.9,1958.3,0.58962458]
[1771767437126,0.53620437,1959.1,1958.3,0.58962458]
[1771767437324,40.8,1959.1,1958.3,0.58962458]
[1771767437825,0.53620437,1959.3,1958.3,0.58962458]
[1771767438929,0.53620437,1959.3,1958.4,0.58466488]
[1771767441729,0.53891237,1959.2,1958.4,0.58466488]
[1771767443924,0.54387891,1959.4,1958.4,0.58466488]
[1771767445230,0.54293641,1959.3,1958.4,0.58466488]
[1771767445727,0.54293641,1959.6,1958.4,0.58466488]
[1771767445925,0.00360198,1959.8,1958.6,0.58466488]
[1771767446127,0.00360198,1959.8,1958.8,0.58466488]
[1771767448928,0.00360198,1959.8,1959.0,0.58466488]
[1771767449936,0.00360198,1959.8,1959.1,0.58466488]
[1771767452630,0.55537763,1959.8,1959.1,0.58466488]
[1771767452835,0.55537763,1959.8,1959.2,0.58466488]
[1771767454335,0.55537763,1959.8,1959.0,0.58466488]
[1771767454636,0.55537763,1959.8,1958.8,0.58466488]
[1771767455135,0.55241614,1959.6,1958.8,0.58466488]
[1771767457633,0.54764486,1959.4,1958.8,0.58466488]
[1771767457833,0.54764486,1959.2,1958.4,0.58466488]
[1771767458236,0.54756724,1959.1,1958.4,0.58466488]
[1771767458636,0.54756724,1959.1,1958.3,0.0049597]
[1771767458837,0.54338413,1958.8,1958.3,0.59720385]
[1771767459039,4.48849845,1959.5,1958.3,0.59720385]
[1771767459240,0.54338413,1959.3,1958.3,0.59720385]
[1771767459444,0.54338413,1959.1,1958.3,0.59720385]
[1771767460344,0.54338413,1959.0,1958.3,0.59720385]
[1771767460840,0.54863489,1959.2,1958.3,0.59720385]
[1771767461240,0.54863489,1959.1,1958.3,0.0049597]
[1771767461744,0.54863489,1959.1,1958.3,0.59720385]
[1771767461941,4.48849845,1959.5,1958.3,0.59720385]
[1771767461942,0.54863489,1958.9,1958.3,0.59720385]
[1771767462841,0.54863489,1958.9,1957.3,0.59224415]
[1771767463142,0.54863489,1958.9,1957.4,0.59224415]
[1771767463542,0.54232081,1958.8,1957.4,0.59224415]
[1771767463844,0.54232081,1958.6,1957.4,0.59716533]
[1771767466148,0.53997548,1958.5,1957.4,0.59716533]
[1771767468254,0.53818089,1958.8,1957.4,0.59716533]
[1771767470055,0.53848526,1958.7,1957.4,0.59716533]
[1771767476755,0.5229046,1958.6,1957.4,0.59716533]
[1771767477757,0.25537,1958.5,1957.4,0.59716533]
[1771767477959,0.5229046,1958.4,1957.4,0.59716533]
[1771767478159,0.52851154,1958.4,1957.4,0.59716533]
[1771767481065,0.00560694,1958.4,1957.4,0.59716533]
[1771767481760,0.53062722,1958.4,1957.4,0.59716533]
[1771767482155,0.00560694,1958.4,1957.4,0.59716533]
[1771767482756,0.5314729,1959.0,1957.8,0.59224415]
[1771767483158,0.5314729,1959.4,1958.0,0.59224415]
[1771767483865,0.53565125,1959.4,1958.0,0.59224415]
[1771767485370,0.55712887,1959.4,1958.0,0.59224415]
[1771767487567,0.56558699,1959.2,1958.0,0.59224415]
[1771767488363,0.56569007,1959.0,1958.0,0.59224415]
[1771767488769,0.82100007,1959.0,1958.0,0.59224415]
[1771767489068,0.56569007,1958.8,1958.0,0.59224415]
[1771767489870,0.56569007,1958.6,1957.5,0.56108271]
[1771767491870,0.56569007,1958.6,1957.6,0.56108271]
[1771767493873,0.56074346,1958.5,1957.6,0.56108271]
[1771767497472,0.53809497,1958.4,1957.6,0.56108271]
[1771767498570,0.53809497,1958.4,1957.4,0.00492118]
[1771767498571,0.53809497,1958.4,1957.4,0.5967237]
[1771767498771,0.54141416,1958.2,1957.4,0.5967237]
[1771767499071,0.54141416,1958.2,1957.4,0.00492118]
[1771767499573,40.8,1958.1,1957.4,0.00492118]
[1771767499766,5.64341416,1958.0,1957.4,0.00492118]
[1771767499971,0.54141416,1957.9,1957.2,0.59180252]
[1771767500170,5.10862034,1958.0,1956.1,13.777]
[1771767500171,0.54141416,1957.7,1956.1,0.59180252]
[1771767500874,0.54141416,1957.7,1956.1,0.5983694]
[1771767501368,0.54141416,1957.7,1956.3,0.59180252]
[1771767505274,5.64341416,1957.7,1956.3,0.59180252]
[1771767505470,0.53503156,1957.5,1956.3,0.59180252]
[1771767507983,0.53138269,1957.3,1956.3,0.59180252]
[1771767510682,0.53627938,1957.9,1956.5,0.59180252]
[1771767513084,0.00662034,1958.0,1956.7,0.59180252]
[1771767513282,0.00662034,1958.0,1956.6,6.74938823]
[1771767513283,0.00662034,1958.0,1957.1,0.59180252]
[1771767513682,0.00662034,1958.0,1956.2,12.43948096]
[1771767513683,0.55273589,1958.5,1957.3,0.59180252]
[1771767514080,41.35273589,1958.5,1957.3,0.59180252]
[1771767514280,0.55273589,1958.4,1957.3,0.59180252]
[1771767514681,0.00603475,1958.4,1957.3,0.59180252]
[1771767514883,0.54928028,1958.3,1957.3,0.59180252]
[1771767518786,0.53619221,1958.2,1957.3,0.59180252]
[1771767519886,0.53619221,1958.2,1957.0,0.58478012]
[1771767521385,5.102,1958.1,1957.0,0.58478012]
[1771767521585,0.53723794,1958.0,1957.0,0.58478012]
[1771767521782,0.53723794,1957.8,1957.0,0.58478012]
[1771767523783,0.53675328,1957.7,1957.0,0.58478012]
[1771767524887,0.5359191,1957.6,1957.0,0.58478012]
[1771767526885,0.53480425,1957.5,1956.8,0.58478012]
[1771767528180,0.53480425,1957.3,1956.8,0.58478012]
[1771767528778,0.25548,1957.7,1956.6,0.58478012]
[1771767528978,5.62653535,1957.4,1956.6,0.58478012]
[1771767529180,0.52453535,1957.3,1956.6,0.58478012]
[1771767529786,0.52453535,1957.6,1956.6,0.58478012]
[1771767529987,0.52453535,1957.3,1956.6,0.58478012]
[1771767530183,5.102,1957.4,1956.1,6.94424688]
[1771767530184,0.52453535,1957.1,1956.4,0.58478012]
[1771767530389,0.52453535,1957.0,1956.4,0.58478012]
[1771767530593,0.00625866,1957.0,1956.4,0.58478012]
[1771767530780,0.52865872,1957.0,1956.4,0.58478012]
[1771767532388,0.52240006,1956.9,1956.2,0.58478012]
[1771767532582,0.00625866,1957.0,1956.2,0.58478012]
[1771767532886,0.52381268,1957.0,1956.2,0.58478012]
[1771767533790,0.51755402,1956.8,1956.2,0.58478012]
[1771767536589,0.00625866,1957.0,1956.2,0.58478012]
[1771767536793,0.52313177,1957.0,1956.2,0.58478012]
[1771767536994,0.52313177,1957.0,1956.3,0.58478012]
[1771767539004,0.52313177,1957.0,1956.3,0.51278012]
[1771767540005,0.54962335,1956.8,1956.3,0.51278012]
[1771767540408,0.54962335,1956.8,1956.1,0.591347]
[1771767540608,0.55588201,1957.0,1956.1,0.591347]
[1771767541509,0.54962335,1957.3,1956.3,0.58478012]
[1771767541703,4.21522663,1957.9,1956.5,0.58478012]
[1771767541704,0.54962335,1957.7,1956.5,0.58478012]
[1771767541912,0.54962335,1957.9,1956.7,0.58478012]
[1771767542113,0.54962335,1957.9,1956.9,0.58478012]
[1771767542606,0.55354213,1957.9,1956.9,0.58478012]
[1771767542807,5.10591878,1957.9,1956.9,0.58478012]
[1771767543013,0.54962335,1957.8,1957.1,0.58478012]
[1771767543310,0.00391878,1957.9,1957.1,0.58478012]
[1771767543612,0.55354213,1957.9,1957.1,0.58478012]
[1771767543808,0.55354213,1957.9,1957.2,0.58478012]
[1771767544208,0.55354213,1957.9,1957.0,0.58478012]
[1771767544704,5.102,1957.8,1957.0,0.58478012]
[1771767544910,0.54962335,1957.6,1956.8,0.58478012]
[1771767545105,0.54962335,1957.5,1956.8,0.58478012]
[1771767545412,0.54962335,1957.5,1956.6,0.58478012]
[1771767545608,0.54962335,1957.3,1956.6,0.58478012]
[1771767545811,0.54962335,1957.1,1956.6,0.58478012]
[1771767546515,0.54962335,1957.6,1956.6,0.58478012]
[1771767547515,0.54962335,1957.4,1956.6,0.58478012]
[1771767549918,0.57357288,1957.0,1956.2,0.55555568]
[1771767550919,0.57357288,1956.9,1956.1,0.00656688]
[1771767551117,0.57357288,1956.9,1956.1,0.56212256]
[1771767559821,0.59672466,1956.8,1955.0,10.72346789]
[1771767560020,0.59672466,1956.0,1954.2,0.60504123]
[1771767560222,0.59672466,1955.5,1954.2,0.60504123]
[1771767560423,0.59672466,1955.2,1954.2,0.60504123]
[1771767560726,0.59672466,1955.0,1954.2,0.60504123]
[1771767560924,0.79961833,1954.9,1954.2,0.61026095]
[1771767561128,0.79961833,1954.8,1954.2,0.61026095]
[1771767561319,0.00510589,1955.0,1954.2,0.61026095]
[1771767561725,0.59672466,1955.4,1954.2,0.61026095]
[1771767562727,0.60252,1955.4,1954.2,0.61026095]
[1771767563228,0.60252,1955.4,1954.3,0.60504123]
[1771767564424,0.60252,1955.4,1954.2,0.00521972]
[1771767564625,0.60252,1955.4,1954.2,0.61026095]
[1771767564819,0.59672466,1955.3,1954.2,0.61026095]
[1771767566919,0.59672466,1955.3,1954.3,0.60504123]
[1771767570726,0.59672466,1955.3,1954.2,0.00521972]
[1771767570926,0.59672466,1955.0,1953.6,0.60504123]
[1771767571127,0.59672466,1954.9,1953.6,0.60504123]
[1771767571326,0.59672466,1954.7,1953.6,0.60504123]
[1771767571829,0.59672466,1954.6,1953.6,0.61063347]
[1771767572331,0.00579534,1955.4,1953.7,0.60504123]
[1771767572332,0.59672466,1955.3,1953.7,0.60504123]
[1771767572534,0.59672466,1955.3,1953.9,0.60504123]
[1771767572933,0.59672466,1955.3,1954.1,0.60504123]
[1771767573335,0.59672466,1955.1,1954.1,7.28904123]
[1771767573534,0.59672466,1954.9,1954.2,0.60504123]
[1771767573733,0.59672466,1955.3,1954.2,0.60504123]
[1771767573937,1.39628024,1955.2,1954.2,0.60504123]
[1771767574237,0.59672466,1955.0,1954.2,0.60504123]
[1771767574733,0.59672466,1955.0,1953.8,0.25598]
[1771767574934,1.39629836,1954.9,1953.9,0.60504123]
[1771767575137,0.7949599,1954.8,1953.9,0.60504123]
[1771767575439,0.59672466,1955.1,1953.9,0.60504123]
[1771767575632,0.59672466,1954.9,1953.9,0.60504123]
[1771767575933,0.59672466,1954.7,1954.1,0.60504123]
[1771767576439,0.79501809,1954.6,1954.1,0.60504123]
[1771767576733,5.102,1955.1,1953.9,0.60504123]
[1771767576734,0.59672466,1954.5,1953.9,0.60504123]
[1771767576937,0.59672466,1954.7,1953.9,0.60504123]
[1771767577140,0.79365331,1954.6,1953.9,0.60504123]
[1771767577334,5.69872466,1954.8,1953.9,0.60504123]
[1771767577535,0.00579534,1955.4,1953.6,0.00559224]
[1771767577536,0.59672466,1954.6,1953.6,0.00559224]
[1771767577837,0.59672466,1953.9,1953.4,0.60504123]
[1771767578135,0.56540853,1954.5,1953.4,0.60504123]
[1771767578441,0.56540853,1954.3,1953.4,0.60504123]
[1771767578740,0.56540853,1954.1,1953.4,0.60994856]
[1771767579345,5.67173433,1954.3,1953.4,0.60994856]
[1771767579534,0.78645264,1954.2,1953.4,0.60994856]
[1771767579735,0.0043258,1954.3,1953.6,0.55516539]
[1771767581138,5.102,1954.6,1953.6,0.55516539]
[1771767581336,0.78133242,1954.5,1953.6,0.55516539]
[1771767581637,5.66740853,1954.7,1953.6,0.55516539]
[1771767581833,0.78147676,1954.6,1953.6,0.55516539]
[1771767582032,0.78147676,1954.6,1953.4,0.00490733]
[1771767582033,0.56540853,1954.0,1953.4,0.00490733]
[1771767582232,0.56540853,1954.0,1953.4,0.56007272]
[1771767582734,0.56540853,1954.2,1953.4,0.56007272]
[1771767582937,0.76442098,1954.1,1953.4,0.56007272]
[1771767583238,1.32878744,1954.0,1953.4,0.56007272]
[1771767583434,0.56540853,1954.2,1953.4,0.56007272]
[1771767583630,0.76338025,1954.1,1953.4,0.56007272]
[1771767583831,1.32878878,1954.0,1953.4,0.56007272]
[1771767584032,0.56540853,1954.0,1953.4,0.56007272]
[1771767584840,0.56540853,1954.0,1953.4,0.00490733]
[1771767584841,0.56540853,1953.8,1953.4,0.00490733]
[1771767585033,0.56540853,1953.8,1953.2,7.24016539]
[1771767585236,0.56540853,1953.6,1953.0,0.55516539]
[1771767586137,0.76443523,1953.5,1953.0,0.55971541]
[1771767586339,0.56540853,1953.6,1953.0,0.55971541]
[1771767586641,1.32984135,1953.5,1953.0,0.55971541]
[1771767586842,0.56540853,1953.5,1953.0,0.55971541]
[1771767587240,0.56540853,1953.8,1953.0,0.55971541]
[1771767587643,0.56540853,1954.1,1953.0,0.55971541]
[1771767588847,0.56540853,1954.0,1953.0,0.55971541]
[1771767589744,0.56540853,1954.0,1953.0,0.00455002]
[1771767590047,0.56540853,1953.8,1953.0,0.00455002]
[1771767591047,0.56540853,1953.6,1952.6,1.53574915]
[1771767592047,0.56540853,1953.6,1952.6,1.54121228]
[1771767592247,0.56540853,1953.6,1952.7,0.55516539]
[1771767593836,0.56540853,1954.0,1952.7,0.55516539]
[1771767594747,0.56540853,1954.0,1952.8,0.55516539]
[1771767596348,9.53974824,1954.3,1952.8,0.55516539]
[1771767596349,0.56540853,1953.6,1952.8,0.55516539]
[1771767597851,6.62990589,1954.3,1952.8,0.55516539]
[1771767597852,5.66740853,1953.4,1952.8,0.55516539]
[1771767598742,0.56540853,1953.3,1952.6,0.98604689]
[1771767598944,0.56540853,1953.2,1952.7,0.55516539]
[1771767599148,0.0050849,1953.2,1952.7,0.55516539]
[1771767599447,0.70582385,1953.1,1952.7,0.55516539]
[1771767599747,0.56540853,1952.9,1952.6,0.98604689]
[1771767599943,0.57049343,1953.2,1952.3,0.55516539]
[1771767600344,0.0050849,1953.2,1952.3,0.55516539]
[1771767600548,0.56540853,1953.6,1952.4,0.25617]
[1771767600752,0.56540853,1954.0,1952.7,0.46891944]
[1771767601147,0.56540853,1953.9,1952.7,0.46891944]
[1771767601548,0.56540853,1953.5,1952.7,0.47337246]
[1771767601743,5.125,1953.5,1952.7,0.47337246]
[1771767601948,0.56540853,1953.4,1952.7,0.47337246]
[1771767603346,0.56540853,1953.3,1952.7,0.47337246]
[1771767603650,0.56540853,1953.3,1952.7,0.00445302]
[1771767605055,5.125,1953.7,1952.7,0.46703283]
[1771767605253,0.56540853,1953.4,1952.7,0.46703283]
[1771767606450,0.56540853,1953.6,1952.7,0.46703283]
[1771767606857,0.56540853,1953.5,1952.7,0.46703283]
[1771767608356,0.55363321,1953.4,1952.7,0.46703283]
[1771767608754,0.55363321,1953.3,1952.7,0.46703283]
[1771767609859,0.00534952,1953.9,1952.7,0.00445302]
[1771767609860,0.55363321,1953.1,1952.7,0.00445302]
[1771767611660,0.55363321,1953.1,1952.0,0.46807408]
[1771767612056,0.55363321,1952.9,1952.0,0.46807408]
[1771767612457,0.55363321,1952.9,1952.0,0.47233055]
[1771767612654,0.55363321,1952.7,1952.0,0.47233055]
[1771767613560,1.20586465,1952.6,1952.0,0.00425647]
[1771767613760,0.65223144,1952.5,1951.6,0.47925834]
[1771767614057,0.60349032,1952.6,1951.6,0.47925834]
[1771767614363,0.6457377,1952.5,1951.6,0.47925834]
[1771767614562,0.60349032,1952.6,1951.6,0.47925834]
[1771767614764,0.60349032,1952.4,1951.6,0.48294937]
[1771767616157,0.60738722,1952.6,1951.8,0.48614614]
[1771767616460,0.60349032,1952.4,1951.8,0.48614614]
[1771767616868,0.60349032,1952.4,1951.6,0.499673]
[1771767619266,0.60349032,1952.4,1951.6,0.00369103]
[1771767619462,0.60349032,1952.2,1951.6,0.00369103]
[1771767619761,0.60349032,1952.2,1951.3,0.49858483]
[1771767620664,0.60349032,1952.5,1951.5,0.49858483]
[1771767620865,0.60349032,1952.5,1951.5,0.50258718]
[1771767621965,0.60349032,1952.4,1951.5,0.50258718]
[1771767622765,5.72849032,1952.4,1951.5,0.50258718]
[1771767622958,0.60349032,1952.3,1951.5,0.50258718]
[1771767623356,0.60349032,1952.2,1951.5,0.50258718]
[1771767624068,0.60349032,1952.4,1951.5,0.50258718]
[1771767624768,0.60349032,1952.4,1951.7,0.4797527]
[1771767624970,5.72849032,1952.4,1951.5,0.48375505]
[1771767625266,0.60349032,1952.3,1951.5,0.48375505]
[1771767627767,0.60349032,1952.2,1951.5,0.48375505]
[1771767628873,0.0038969,1952.6,1951.5,0.48375505]
[1771767628874,0.60349032,1952.4,1951.5,0.48375505]
[1771767629468,0.60349032,1952.4,1951.6,0.47481536]
[1771767629864,0.60349032,1952.3,1951.6,0.47481536]
[1771767633880,5.72849032,1952.1,1951.5,0.00400235]
[1771767634082,0.60349032,1952.0,1951.5,0.00400235]
[1771767634882,0.60349032,1952.0,1950.4,6.916]
[1771767634883,0.25632,1951.3,1949.4,0.60630378]
[1771767635081,0.60349032,1950.6,1948.7,0.57793585]
[1771767635278,0.60349032,1951.2,1949.6,0.57793585]
[1771767635482,0.60349032,1951.2,1949.8,0.57793585]
[1771767635684,0.60349032,1951.2,1950.0,0.57793585]
[1771767635883,0.60909354,1951.2,1950.0,0.58161552]
[1771767636082,0.60349032,1951.0,1950.0,0.58161552]
[1771767636481,0.60909354,1951.2,1950.0,0.58161552]
[1771767636685,0.60349032,1951.0,1950.0,0.58161552]
[1771767637182,0.60349032,1951.0,1950.0,0.00367967]
[1771767637376,0.60349032,1950.8,1950.0,0.58161552]
[1771767640685,0.00560322,1951.2,1950.0,0.58161552]
[1771767640686,0.81438895,1951.1,1950.0,0.58161552]
[1771767643186,0.81438895,1951.1,1950.0,0.59161552]
[1771767643985,0.81438895,1950.9,1950.0,0.01367967]
[1771767644187,0.81438895,1950.9,1949.8,0.79908233]
[1771767644387,0.81438895,1950.9,1949.6,7.48908233]
[1771767644583,0.81438895,1950.7,1949.4,0.79908233]
[1771767644784,0.00560322,1951.2,1948.6,0.79908233]
[1771767644785,5.125,1949.9,1948.6,0.79908233]
[1771767644992,0.81438895,1950.6,1948.8,0.79908233]
[1771767645282,0.81438895,1950.5,1949.2,0.79908233]
[1771767645681,0.81438895,1950.5,1949.4,0.79908233]
[1771767646291,40.8,1950.6,1948.9,0.79908233]
[1771767646292,0.81438895,1950.2,1948.9,0.79908233]
[1771767646885,0.81438895,1950.1,1948.9,0.79908233]
[1771767647588,0.81438895,1949.9,1948.9,0.79908233]
[1771767647789,0.81438895,1949.9,1948.8,0.00395282]
[1771767648391,5.93938895,1949.7,1948.8,0.00395282]
[1771767648589,0.81438895,1949.6,1948.8,0.00395282]
[1771767648787,5.93938895,1949.6,1948.8,0.00395282]
[1771767649092,0.81438895,1949.4,1948.8,0.00395282]
[1771767649284,0.81438895,1949.4,1948.5,0.79908233]
[1771767649889,0.81438895,1949.3,1948.0,0.79908233]
[1771767650389,5.93938895,1949.0,1948.0,0.80328395]
[1771767650691,0.81438895,1949.2,1948.0,0.80328395]
[1771767652191,0.81438895,1949.2,1948.2,0.79908233]
[1771767653693,0.81438895,1949.5,1948.2,0.79908233]
[1771767654191,0.00633514,1949.7,1948.3,7.52994744]
[1771767654389,0.00633514,1949.7,1948.4,0.79908233]
[1771767654590,0.82072409,1949.7,1948.4,0.79908233]
[1771767654787,0.82072409,1949.7,1948.5,0.79908233]
[1771767654992,0.82072409,1949.7,1948.6,0.79908233]
[1771767655192,0.00633514,1949.7,1948.6,0.79908233]
[1771767655396,0.00633514,1949.7,1948.8,0.79908233]
[1771767656591,0.00633514,1949.7,1949.0,0.79908233]
[1771767656790,0.82072409,1949.7,1949.0,0.79908233]
[1771767657194,0.82072409,1949.7,1948.8,0.79908233]
[1771767657885,0.82072409,1949.7,1948.6,0.79908233]
[1771767658090,0.82072409,1949.7,1948.7,0.79908233]
[1771767659891,0.81438895,1949.6,1948.4,0.79908233]
[1771767661295,0.81438895,1949.2,1948.4,0.79908233]
[1771767663495,5.125,1949.4,1948.4,0.79908233]
[1771767663800,0.81438895,1949.3,1948.4,0.79908233]
[1771767664503,0.81438895,1949.3,1948.5,0.79908233]
[1771767664798,0.81438895,1949.2,1948.5,0.79908233]
[1771767665690,5.93938895,1949.4,1948.5,0.79908233]
[1771767665889,0.81438895,1949.3,1948.5,0.79908233]
[1771767666796,5.93938895,1949.3,1948.5,0.79908233]
[1771767667693,0.81438895,1949.3,1948.5,0.79908233]
[1771767667898,0.81438895,1949.1,1948.5,7.49208233]
[1771767668100,0.75176982,1949.4,1948.6,0.73145183]
[1771767669996,0.00633514,1949.7,1948.6,0.73145183]
[1771767669997,5.87676982,1949.3,1948.6,0.73145183]
[1771767670298,5.125,1949.3,1948.6,0.73145183]
[1771767670891,5.125,1949.4,1948.6,0.73145183]
[1771767671300,5.87676982,1949.4,1948.6,0.73145183]
[1771767671598,0.75176982,1949.3,1948.6,0.73145183]
[1771767671799,0.75176982,1949.1,1948.4,7.42445183]
[1771767672000,0.75176982,1949.1,1948.5,0.73145183]
[1771767672700,5.87676982,1949.3,1948.5,0.73145183]
[1771767672900,0.75176982,1949.2,1948.5,0.73145183]
[1771767673301,5.125,1949.3,1948.5,0.73145183]
[1771767673602,0.75176982,1949.4,1948.5,0.73145183]
[1771767674702,0.69874224,1949.6,1948.5,0.73145183]
[1771767674903,0.69874224,1949.4,1948.5,0.73145183]
[1771767675102,0.69874224,1949.4,1948.7,0.7274154]
[1771767675298,0.69874224,1949.4,1948.8,6.693]
[1771767675504,0.69874224,1949.4,1948.8,7.4204154]
[1771767675803,5.82374224,1949.6,1948.9,0.7274154]
[1771767675998,0.5988455,1949.5,1948.9,0.7274154]
[1771767676200,0.00633514,1949.7,1948.9,0.7274154]
[1771767676404,0.59935407,1949.6,1948.9,0.7274154]
[1771767676603,0.59935407,1949.5,1948.9,0.7274154]
[1771767676802,0.70507738,1949.7,1948.9,0.7274154]
[1771767677006,0.70507738,1949.7,1949.1,0.7274154]
[1771767677208,0.00633514,1949.7,1949.1,0.7274154]
[1771767678709,0.69874224,1950.2,1949.1,0.7274154]
[1771767678910,12.28015846,1950.1,1949.1,0.7274154]
[1771767679109,0.59468007,1950.0,1949.1,0.7274154]
[1771767679310,5.125,1950.1,1949.1,0.7274154]
[1771767679311,0.69874224,1950.1,1949.1,0.7274154]
[1771767679812,0.69874224,1949.9,1949.1,0.7274154]
[1771767680010,0.69874224,1949.9,1948.9,0.25662]
[1771767680011,0.69874224,1949.9,1949.3,0.7274154]
[1771767680206,0.69874224,1949.7,1949.2,7.4214154]
[1771767681009,5.125,1949.8,1949.3,0.7274154]
[1771767681210,5.82374224,1949.7,1949.3,0.7274154]
[1771767681706,0.69874224,1949.6,1948.6,0.7274154]
[1771767681906,0.69874224,1949.1,1948.2,0.01]
[1771767682104,5.125,1948.7,1948.2,0.7374154]
[1771767682305,5.125,1949.0,1948.2,0.7374154]
[1771767682504,0.69874224,1949.7,1948.6,0.7274154]
[1771767682706,0.59357701,1949.6,1948.8,0.7274154]
[1771767682911,0.69874224,1949.5,1948.9,6.694]
[1771767683307,5.83024948,1949.5,1948.9,6.694]
[1771767683509,5.82374224,1949.4,1948.8,0.7274154]
[1771767683706,5.82374224,1949.4,1948.8,7.4214154]
[1771767684004,5.82374224,1949.4,1948.9,0.7274154]
[1771767684702,5.13150724,1949.5,1948.9,0.7274154]
[1771767685607,0.00650724,1949.5,1948.9,0.7274154]
[1771767686408,0.69874224,1950.2,1948.9,0.7274154]
[1771767686609,1.27625807,1950.1,1948.9,0.7274154]
[1771767686810,0.69874224,1950.0,1948.9,0.7274154]
[1771767687312,0.00385033,1950.0,1948.9,0.7274154]
[1771767687708,0.00385033,1950.0,1949.0,0.7274154]
[1771767688712,0.00385033,1950.0,1949.2,0.7274154]
[1771767688913,0.00385033,1950.0,1949.4,0.7274154]
[1771767689108,0.00385033,1950.0,1949.4,0.73329479]
[1771767693212,0.70259257,1950.0,1949.4,0.00587939]
[1771767693415,0.69874224,1949.8,1948.6,0.7274154]
[1771767694314,0.69874224,1949.7,1948.6,0.73372129]
[1771767694817,0.69874224,1949.5,1948.6,0.73372129]
[1771767696218,5.82374224,1949.5,1948.6,0.73372129]
[1771767696418,0.69874224,1949.4,1948.6,0.73372129]
[1771767697825,0.69874224,1949.0,1948.2,0.7374154]
[1771767698021,5.82374224,1949.2,1948.2,0.7374154]
[1771767698823,5.82374224,1949.2,1948.2,0.74390156]
[1771767699325,0.69874224,1949.2,1948.2,0.74390156]
[1771767699724,5.125,1949.8,1948.2,0.74390156]
[1771767699925,0.64340727,1949.4,1948.2,0.74390156]
[1771767700427,0.64340727,1949.6,1948.4,0.67419713]
[1771767701124,5.76840727,1949.8,1948.4,0.67419713]
[1771767701327,5.76840727,1949.8,1948.6,0.67419713]
[1771767701826,5.76840727,1949.7,1948.6,0.67419713]
[1771767702824,0.64340727,1949.3,1948.6,0.67419713]
[1771767704828,5.76840727,1949.2,1948.4,0.67419713]
[1771767705026,0.64340727,1949.2,1948.4,0.67419713]
[1771767705929,5.77326765,1949.4,1948.4,0.67419713]
[1771767706330,0.64826765,1949.4,1948.4,0.67419713]
[1771767706830,0.64826765,1949.3,1948.4,0.67419713]
[1771767707330,0.64826765,1949.1,1948.4,0.67419713]
[1771767708131,0.64826765,1949.3,1948.4,0.67419713]
[1771767709631,5.77326765,1949.2,1948.4,0.67419713]
[1771767710928,0.64826765,1949.2,1948.4,0.67419713]
[1771767711736,0.64826765,1949.6,1948.4,0.67419713]
[1771767711928,5.125,1949.5,1948.4,0.67419713]
[1771767712138,5.77326765,1949.5,1948.4,0.67419713]
[1771767712533,0.64826765,1949.4,1948.4,0.67419713]
[1771767712730,0.64826765,1949.4,1948.4,0.93088713]
[1771767712935,0.64826765,1949.4,1948.5,0.64103054]
[1771767715732,5.77326765,1949.4,1948.5,0.64103054]
[1771767715934,0.64826765,1949.3,1948.5,0.64103054]
[1771767716936,0.64826765,1949.2,1948.5,0.64103054]
[1771767717639,0.64826765,1949.1,1948.5,0.64103054]
[1771767717940,0.64826765,1948.9,1948.2,0.01648616]
[1771767718348,0.64826765,1948.8,1948.2,0.01648616]
[1771767718745,0.64826765,1948.8,1948.2,0.6575167]
[1771767718944,0.64826765,1948.7,1948.0,0.64103054]
[1771767719946,0.64826765,1948.7,1948.0,0.6475822]
[1771767720246,5.77326765,1949.0,1948.0,0.6475822]
[1771767720440,5.77326765,1949.2,1948.2,0.64103054]
[1771767720649,4.47239117,1949.8,1948.1,0.25673]
[1771767720650,0.64826765,1949.7,1948.4,0.64103054]
[1771767720949,0.64826765,1949.5,1948.4,0.64103054]
[1771767721150,0.64826765,1949.3,1948.4,0.64103054]
[1771767721448,0.25651,1949.8,1948.1,0.64103054]
[1771767721449,0.64826765,1948.8,1948.1,0.64103054]
[1771767722149,0.64826765,1948.8,1948.0,0.00655166]
[1771767722150,5.77326765,1948.7,1948.0,0.00655166]
[1771767722449,4.21588117,1949.4,1947.3,0.64103054]
[1771767722450,0.64826765,1948.1,1947.3,0.64103054]
[1771767722749,0.82892389,1948.6,1946.9,0.64103054]
[1771767722750,0.03292339,1947.8,1946.9,0.64103054]
[1771767722945,5.15792339,1947.6,1946.8,0.64103054]
[1771767723147,0.03292339,1947.5,1946.5,0.64103054]
[1771767723347,0.03665338,1947.5,1946.5,0.64515559]
[1771767723749,0.02955845,1948.1,1946.7,0.64103054]
[1771767724349,0.02955845,1948.5,1946.9,0.64103054]
[1771767724551,0.09556561,1948.3,1946.9,0.64103054]
[1771767724753,0.11613424,1947.7,1945.8,0.64103054]
[1771767724952,0.11613424,1947.4,1945.8,0.64103054]
[1771767725248,0.11613424,1947.4,1945.9,0.64103054]
[1771767725649,0.12241806,1947.4,1945.9,0.64706947]
[1771767726047,0.00628382,1947.4,1946.3,0.64103054]
[1771767726444,0.00628382,1947.4,1946.5,0.64103054]
[1771767727552,0.00628382,1947.4,1946.7,0.64103054]
[1771767729549,0.12723593,1947.4,1946.7,0.64103054]
[1771767729749,0.00628382,1947.4,1946.7,0.64103054]
[1771767730052,0.00628382,1947.4,1946.3,0.61741947]
[1771767730053,0.12731269,1947.4,1946.3,0.61741947]
[1771767731049,0.11658534,1947.2,1946.0,0.61741947]
[1771767731856,0.11658534,1947.2,1945.9,0.00603893]
[1771767732060,0.11658534,1947.2,1945.9,0.6234584]
[1771767733361,40.90264869,1947.4,1946.1,0.61741947]
[1771767733559,0.0926212,1947.3,1946.1,0.61741947]
[1771767734154,0.08966628,1947.2,1946.1,0.61741947]
[1771767734861,0.08175437,1947.4,1946.1,0.62741947]
[1771767736364,0.00628382,1947.4,1946.3,0.65018563]
[1771767736564,0.00628382,1947.4,1946.5,0.65018563]
[1771767737260,0.0917386,1947.4,1946.5,0.65018563]
[1771767737562,0.00628382,1947.4,1946.5,0.65018563]
[1771767738964,0.10026646,1948.0,1946.7,0.65018563]
[1771767740060,0.00548849,1948.0,1946.7,0.65018563]
[1771767740660,0.10510944,1948.0,1946.7,0.65018563]
[1771767741660,0.00548849,1948.0,1946.7,0.65018563]
[1771767741865,0.00548849,1948.0,1946.8,0.65018563]
[1771767742468,0.00548849,1948.0,1947.0,0.65018563]
[1771767743164,0.00548849,1948.0,1947.2,0.65018563]
[1771767743766,0.11448804,1948.7,1947.2,0.65018563]
[1771767744271,45.925,1948.6,1947.2,0.65018563]
[1771767744461,0.11448804,1948.7,1947.4,0.65018563]
[1771767744667,0.12057325,1948.7,1947.4,0.65483795]
[1771767745866,0.12057325,1948.7,1947.6,0.65018563]
[1771767745867,0.11862248,1948.7,1947.6,0.65018563]
[1771767746465,0.10888795,1948.5,1947.4,0.65483795]